[Event "Masters Tournament (MTO)"]
[Site "Biel, Switzerland"]
[Date "2026.07.18"]
[Round "6.10"]
[White "Ling, Chenxuan"]
[Black "Sasikiran, Krishnan"]
[Result "1-0"]
[TimeControl "100+30+30sec/move"]
[WhiteTitle "-"]
[BlackTitle "-"]
[WhiteFideId "30983118"]
[BlackFideId "5004985"]
[WhiteElo "2166"]
[BlackElo "2546"]

1. d4 {[%clk 01:40:09]} {[%emt 00:00:48]} Nf6 {[%clk 01:40:49]} {[%emt
00:00:10]} 2. c4 {[%clk 01:40:15]} {[%emt 00:00:26]} g6 {[%clk 01:41:07]}
{[%emt 00:00:11]} 3. Nc3 {[%clk 01:40:33]} {[%emt 00:00:12]} Bg7 {[%clk
01:41:22]} {[%emt 00:00:15]} 4. e4 {[%clk 01:40:49]} {[%emt 00:00:14]} d6
{[%clk 01:41:40]} {[%emt 00:00:12]} 5. h3 {[%clk 01:41:10]} {[%emt 00:00:09]}
O-O {[%clk 01:41:45]} {[%emt 00:00:25]} 6. Bg5 {[%clk 01:41:09]} {[%emt
00:00:31]} c5 {[%clk 01:41:17]} {[%emt 00:00:58]} 7. d5 {[%clk 01:41:25]}
{[%emt 00:00:14]} e6 {[%clk 01:41:10]} {[%emt 00:00:37]} 8. Bd3 {[%clk
01:40:59]} {[%emt 00:00:55]} exd5 {[%clk 01:40:00]} {[%emt 00:01:41]} 9. exd5
{[%clk 01:41:14]} {[%emt 00:00:15]} Re8+ {[%clk 01:37:21]} {[%emt 00:03:08]} 10.
Nge2 {[%clk 01:41:30]} {[%emt 00:00:15]} Nbd7 {[%clk 01:34:04]} {[%emt
00:03:47]} 11. O-O {[%clk 01:34:14]} {[%emt 00:07:45]} h6 {[%clk 01:29:17]}
{[%emt 00:05:17]} 12. Be3 {[%clk 01:33:39]} {[%emt 00:01:06]} Ne5 {[%clk
01:26:35]} {[%emt 00:03:12]} 13. Ng3 {[%clk 01:28:48]} {[%emt 00:05:20]} h5
{[%clk 01:08:12]} {[%emt 00:18:54]} 14. Bg5 {[%clk 01:15:41]} {[%emt 00:13:37]}
Qb6 {[%clk 01:07:31]} {[%emt 00:01:10]} 15. Be2 {[%clk 01:07:14]} {[%emt
00:08:58]} Nh7 {[%clk 01:07:35]} {[%emt 00:00:26]} 16. Bd2 {[%clk 01:06:28]}
{[%emt 00:01:16]} h4 {[%clk 01:04:10]} {[%emt 00:03:54]} 17. Nge4 {[%clk
00:54:07]} {[%emt 00:12:51]} Bf5 {[%clk 00:52:05]} {[%emt 00:12:36]} 18. Re1
{[%clk 00:48:06]} {[%emt 00:06:31]} Re7 {[%clk 00:50:34]} {[%emt 00:02:00]} 19.
Qb3 {[%clk 00:43:38]} {[%emt 00:04:59]} Qd8 {[%clk 00:41:53]} {[%emt 00:09:10]}
20. f4 {[%clk 00:38:52]} {[%emt 00:05:17]} b5 {[%clk 00:32:35]} {[%emt
00:09:47]} 21. fxe5 {[%clk 00:35:23]} {[%emt 00:04:00]} Rxe5 {[%clk 00:32:07]}
{[%emt 00:00:58]} 22. Bf3 {[%clk 00:34:23]} {[%emt 00:01:29]} bxc4 {[%clk
00:28:29]} {[%emt 00:04:09]} 23. Qxc4 {[%clk 00:31:52]} {[%emt 00:03:02]} Rb8
{[%clk 00:28:47]} {[%emt 00:00:11]} 24. Bf4 {[%clk 00:29:21]} {[%emt 00:03:01]}
Rb4 {[%clk 00:27:40]} {[%emt 00:01:37]} 25. Qf1 {[%clk 00:29:01]} {[%emt
00:00:49]} Rxb2 {[%clk 00:24:18]} {[%emt 00:03:52]} 26. Rab1 {[%clk 00:25:35]}
{[%emt 00:03:57]} Rb4 {[%clk 00:22:19]} {[%emt 00:02:29]} 27. Bxe5 {[%clk
00:23:47]} {[%emt 00:02:18]} Bxe5 {[%clk 00:22:13]} {[%emt 00:00:35]} 28. Rxb4
{[%clk 00:23:38]} {[%emt 00:00:40]} cxb4 {[%clk 00:22:16]} {[%emt 00:00:27]} 29.
Nd1 {[%clk 00:23:44]} {[%emt 00:00:24]} Ng5 {[%clk 00:19:05]} {[%emt 00:03:40]}
30. Nxg5 {[%clk 00:23:47]} {[%emt 00:00:28]} Qxg5 {[%clk 00:19:30]} {[%emt
00:00:04]} 31. Bg4 {[%clk 00:24:00]} {[%emt 00:00:17]} Bxg4 {[%clk 00:12:36]}
{[%emt 00:07:25]} 32. hxg4 {[%clk 00:24:27]} {[%emt 00:00:03]} Qd2 {[%clk
00:12:28]} {[%emt 00:00:38]} 33. Qe2 {[%clk 00:23:04]} {[%emt 00:01:53]} Qxd5
{[%clk 00:08:28]} {[%emt 00:04:30]} 34. Ne3 {[%clk 00:22:56]} {[%emt 00:00:38]}
Qc5 {[%clk 00:08:32]} {[%emt 00:00:26]} 35. Kh1 {[%clk 00:22:15]} {[%emt
00:01:11]} a5 {[%clk 00:04:58]} {[%emt 00:04:04]} 36. Qf3 {[%clk 00:22:25]}
{[%emt 00:00:20]} a4 {[%clk 00:04:54]} {[%emt 00:00:35]} 37. Rf1 {[%clk
00:22:38]} {[%emt 00:00:16]} Qa7 {[%clk 00:04:23]} {[%emt 00:01:01]} 38. Nd5
{[%clk 00:22:50]} {[%emt 00:00:18]} b3 {[%clk 00:02:56]} {[%emt 00:01:56]} 39.
axb3 {[%clk 00:22:45]} {[%emt 00:00:36]} a3 {[%clk 00:03:15]} {[%emt 00:00:11]}
40. Nb4 {[%clk 00:23:09]} {[%emt 00:00:06]} Bg7 {[%clk 00:02:47]} {[%emt
00:00:57]} 41. Na2 {[%clk 00:21:40]} {[%emt 00:02:00]} Be5 {[%clk 00:02:38]}
{[%emt 00:00:38]} 42. b4 {[%clk 00:21:55]} {[%emt 00:00:16]} Kg7 {[%clk
00:00:43]} {[%emt 00:02:24]} 43. g5 {[%clk 00:21:57]} {[%emt 00:00:29]} Qc7
{[%clk 00:27:45]} {[%emt 00:03:28]} 44. Qd5 {[%clk 00:50:20]} {[%emt 00:02:07]}
Qe7 {[%clk 00:26:29]} {[%emt 00:01:46]} 45. b5 {[%clk 00:49:48]} {[%emt
00:01:02]} h3 {[%clk 00:24:38]} {[%emt 00:02:21]} 46. gxh3 {[%clk 00:49:53]}
{[%emt 00:00:25]} Qxg5 {[%clk 00:25:00]} {[%emt 00:00:07]} 47. Qxf7+ {[%clk
00:50:19]} {[%emt 00:00:05]} Kh6 {[%clk 00:25:25]} {[%emt 00:00:05]} 48. Qf8+
{[%clk 00:50:35]} {[%emt 00:00:15]} Kh5 {[%clk 00:25:48]} {[%emt 00:00:06]} 49.
Qf3+ {[%clk 00:50:59]} {[%emt 00:00:05]} Kh6 {[%clk 00:26:13]} {[%emt
00:00:06]} 50. Qg2 {[%clk 00:51:13]} {[%emt 00:00:16]} Qe3 {[%clk 00:22:52]}
{[%emt 00:03:51]} 51. Rg1 {[%clk 00:51:28]} {[%emt 00:00:16]} g5 {[%clk
00:23:02]} {[%emt 00:00:19]} 52. b6 {[%clk 00:51:48]} {[%emt 00:00:10]} Bf4
{[%clk 00:19:41]} {[%emt 00:03:50]} 53. b7 {[%clk 00:52:00]} {[%emt 00:00:19]}
Qb3 {[%clk 00:19:50]} {[%emt 00:00:21]} 54. Nc3 {[%clk 00:51:46]} {[%emt
00:00:45]} a2 {[%clk 00:19:47]} {[%emt 00:00:32]} 55. Nxa2 {[%clk 00:51:34]}
{[%emt 00:00:42]} d5 {[%clk 00:20:12]} {[%emt 00:00:05]} 56. Nc3 {[%clk
00:51:56]} {[%emt 00:00:08]} Qxc3 {[%clk 00:19:24]} {[%emt 00:01:18]} 57. b8=Q
{[%emt 00:00:39]} 1-0

[Event "Masters Tournament (MTO)"]
[Site "Biel, Switzerland"]
[Date "2026.07.18"]
[Round "6.11"]
[White "Elmi, Saad Abobaker"]
[Black "Ivana Maria, Furtado"]
[Result "1-0"]
[TimeControl "100+30+30sec/move"]
[WhiteTitle "-"]
[BlackTitle "-"]
[WhiteFideId "1553259"]
[BlackFideId "5048400"]
[WhiteElo "2399"]
[BlackElo "2182"]

1. Nf3 {[%clk 01:40:57]} d5 {[%clk 01:40:06]} {[%emt 00:00:54]} 2. e3 {[%clk
01:41:05]} {[%emt 00:00:22]} c5 {[%clk 01:39:16]} {[%emt 00:01:20]} 3. d4
{[%clk 01:41:23]} {[%emt 00:00:12]} Nf6 {[%clk 01:37:45]} {[%emt 00:02:01]} 4.
c4 {[%clk 01:40:54]} {[%emt 00:00:58]} cxd4 {[%clk 01:36:56]} {[%emt 00:01:20]}
5. exd4 {[%clk 01:41:06]} {[%emt 00:00:18]} g6 {[%clk 01:32:00]} {[%emt
00:05:25]} 6. Nc3 {[%clk 01:40:05]} {[%emt 00:01:32]} Bg7 {[%clk 01:29:56]}
{[%emt 00:02:34]} 7. Be2 {[%clk 01:34:20]} {[%emt 00:06:15]} O-O {[%clk
01:28:50]} {[%emt 00:01:35]} 8. O-O {[%clk 01:34:23]} {[%emt 00:00:28]} dxc4
{[%clk 01:28:56]} {[%emt 00:00:25]} 9. Bxc4 {[%clk 01:34:37]} {[%emt 00:00:16]}
Bg4 {[%clk 01:20:00]} {[%emt 00:09:25]} 10. d5 {[%clk 01:32:13]} {[%emt
00:02:54]} Nbd7 {[%clk 01:19:24]} {[%emt 00:01:05]} 11. Re1 {[%clk 01:30:49]}
{[%emt 00:01:54]} Nb6 {[%clk 01:05:34]} {[%emt 00:14:21]} 12. Bb3 {[%clk
01:30:52]} {[%emt 00:00:27]} Qd7 {[%clk 01:02:32]} {[%emt 00:03:32]} 13. h3
{[%clk 01:30:16]} {[%emt 00:01:05]} Bxf3 {[%clk 01:02:15]} {[%emt 00:00:48]} 14.
Qxf3 {[%clk 01:30:43]} {[%emt 00:00:02]} Rad8 {[%clk 00:59:48]} {[%emt
00:02:58]} 15. Rd1 {[%clk 01:24:40]} {[%emt 00:06:32]} Qf5 {[%clk 00:56:48]}
{[%emt 00:03:31]} 16. Qe2 {[%clk 01:17:59]} {[%emt 00:07:11]} h5 {[%clk
00:41:24]} {[%emt 00:15:54]} 17. Qxe7 {[%clk 01:05:21]} {[%emt 00:13:07]} Rd7
{[%clk 00:36:09]} {[%emt 00:05:45]} 18. Qe2 {[%clk 01:05:03]} {[%emt 00:00:48]}
h4 {[%clk 00:25:29]} {[%emt 00:11:11]} 19. Qd3 {[%clk 01:03:35]} {[%emt
00:01:57]} Qxd3 {[%clk 00:20:22]} {[%emt 00:05:38]} 20. Rxd3 {[%clk 01:04:02]}
{[%emt 00:00:02]} Nh5 {[%clk 00:19:13]} {[%emt 00:01:39]} 21. Be3 {[%clk
01:03:13]} {[%emt 00:01:18]} Rfd8 {[%clk 00:18:00]} {[%emt 00:01:44]} 22. Rad1
{[%clk 01:03:05]} {[%emt 00:00:38]} Be5 {[%clk 00:17:20]} {[%emt 00:01:11]} 23.
Ne4 {[%clk 01:02:19]} {[%emt 00:01:16]} Nc8 {[%clk 00:14:06]} {[%emt 00:03:44]}
24. d6 {[%clk 00:57:08]} {[%emt 00:05:41]} Bxd6 {[%clk 00:11:57]} {[%emt
00:02:38]} 25. Kf1 {[%clk 00:57:06]} {[%emt 00:00:32]} Kf8 {[%clk 00:08:53]}
{[%emt 00:03:34]} 26. Bg5 {[%clk 00:56:59]} {[%emt 00:00:37]} f6 {[%clk
00:07:55]} {[%emt 00:01:29]} 27. Nxf6 {[%clk 00:57:24]} {[%emt 00:00:06]} Nxf6
{[%clk 00:08:18]} {[%emt 00:00:06]} 28. Bxf6 {[%clk 00:57:47]} {[%emt
00:00:07]} Re8 {[%clk 00:08:35]} {[%emt 00:00:13]} 29. Ba4 {[%clk 00:58:01]}
{[%emt 00:00:16]} 1-0

[Event "Masters Tournament (MTO)"]
[Site "Biel, Switzerland"]
[Date "2026.07.18"]
[Round "6.12"]
[White "Lu, Miaoyi"]
[Black "Fogo Esquivel, Levi Kalani Alexander"]
[Result "1-0"]
[TimeControl "100+30+30sec/move"]
[WhiteTitle "-"]
[BlackTitle "-"]
[WhiteFideId "8618020"]
[BlackFideId "5183189"]
[WhiteElo "2392"]
[BlackElo "2125"]

1. e4 {[%clk 01:40:29]} {[%emt 00:00:30]} e5 {[%clk 01:40:53]} {[%emt
00:00:07]} 2. Nf3 {[%clk 01:40:51]} {[%emt 00:00:09]} Nc6 {[%clk 01:41:18]}
{[%emt 00:00:04]} 3. Bc4 {[%clk 01:41:17]} {[%emt 00:00:05]} Nf6 {[%clk
01:41:41]} {[%emt 00:00:06]} 4. Ng5 {[%clk 01:41:11]} {[%emt 00:00:37]} d5
{[%clk 01:41:54]} {[%emt 00:00:17]} 5. exd5 {[%clk 01:41:36]} {[%emt 00:00:04]}
Na5 {[%clk 01:42:20]} {[%emt 00:00:05]} 6. Bb5+ {[%clk 01:42:02]} {[%emt
00:00:04]} c6 {[%clk 01:42:46]} {[%emt 00:00:04]} 7. dxc6 {[%clk 01:42:27]}
{[%emt 00:00:05]} bxc6 {[%clk 01:43:12]} {[%emt 00:00:04]} 8. Qf3 {[%clk
01:42:52]} {[%emt 00:00:04]} Bb7 {[%clk 01:41:21]} {[%emt 00:02:22]} 9. Ba4
{[%clk 01:40:39]} {[%emt 00:02:44]} Be7 {[%clk 01:38:12]} {[%emt 00:03:37]} 10.
d3 {[%clk 01:38:59]} {[%emt 00:02:10]} O-O {[%clk 01:38:13]} {[%emt 00:00:29]}
11. Nc3 {[%clk 01:30:52]} {[%emt 00:08:37]} Nd5 {[%clk 01:32:17]} {[%emt
00:06:26]} 12. Qh5 {[%clk 01:22:19]} {[%emt 00:09:04]} h6 {[%clk 01:29:38]}
{[%emt 00:03:08]} 13. Nf3 {[%clk 01:16:05]} {[%emt 00:06:44]} Nxc3 {[%clk
01:09:40]} {[%emt 00:20:29]} 14. bxc3 {[%clk 01:16:15]} {[%emt 00:00:20]} e4
{[%clk 01:05:06]} {[%emt 00:05:04]} 15. dxe4 {[%clk 01:14:21]} {[%emt
00:02:24]} c5 {[%clk 00:56:40]} {[%emt 00:08:55]} 16. O-O {[%clk 00:50:07]}
{[%emt 00:24:44]} Bxe4 {[%clk 00:54:41]} {[%emt 00:02:29]} 17. Ne5 {[%clk
00:41:57]} {[%emt 00:08:40]} Qd5 {[%clk 00:50:16]} {[%emt 00:04:54]} 18. Bf4
{[%clk 00:33:26]} {[%emt 00:09:03]} Bg6 {[%clk 00:24:35]} {[%emt 00:26:11]} 19.
Qe2 {[%clk 00:32:31]} {[%emt 00:01:25]} Qe6 {[%clk 00:17:41]} {[%emt 00:07:23]}
20. Bd7 {[%clk 00:25:18]} {[%emt 00:07:44]} Qf6 {[%clk 00:14:29]} {[%emt
00:03:42]} 21. Nxg6 {[%clk 00:25:39]} {[%emt 00:00:08]} fxg6 {[%clk 00:14:22]}
{[%emt 00:00:37]} 22. Be5 {[%clk 00:25:55]} {[%emt 00:00:15]} Qb6 {[%clk
00:11:54]} {[%emt 00:02:57]} 23. Rab1 {[%clk 00:24:39]} {[%emt 00:01:46]} Qd8
{[%clk 00:12:17]} {[%emt 00:00:07]} 24. Rfd1 {[%clk 00:23:37]} {[%emt
00:01:33]} Kh7 {[%clk 00:12:41]} {[%emt 00:00:05]} 25. Ba4 {[%clk 00:14:31]}
{[%emt 00:09:37]} Qc8 {[%clk 00:12:38]} {[%emt 00:00:32]} 26. Bd7 {[%clk
00:08:50]} {[%emt 00:06:12]} Qd8 {[%clk 00:13:03]} {[%emt 00:00:05]} 27. Ba4
{[%clk 00:07:38]} {[%emt 00:01:42]} Qc8 {[%clk 00:13:30]} {[%emt 00:00:03]} 28.
Rd7 {[%clk 00:06:42]} {[%emt 00:01:26]} Bf6 {[%clk 00:11:15]} {[%emt 00:02:45]}
29. Bc7 {[%clk 00:06:06]} {[%emt 00:01:06]} Nb7 {[%clk 00:09:02]} {[%emt
00:02:43]} 30. Qe4 {[%clk 00:04:06]} {[%emt 00:02:29]} Nd8 {[%clk 00:08:49]}
{[%emt 00:00:44]} 31. h4 {[%clk 00:03:34]} {[%emt 00:01:02]} Qa6 {[%clk
00:06:33]} {[%emt 00:02:46]} 32. Bb5 {[%clk 00:01:27]} {[%emt 00:02:36]} Qxa2
{[%clk 00:05:13]} {[%emt 00:01:51]} 33. Rf1 {[%clk 00:00:50]} {[%emt 00:01:07]}
Rc8 {[%clk 00:03:55]} {[%emt 00:01:48]} 34. Bc4 {[%clk 00:01:06]} {[%emt
00:00:15]} Rxc7 {[%clk 00:02:23]} {[%emt 00:02:02]} 35. Rxc7 {[%clk 00:01:12]}
{[%emt 00:00:23]} Qa5 {[%clk 00:02:52]} {[%emt 00:00:01]} 36. Rd7 {[%clk
00:00:57]} {[%emt 00:00:45]} Bxc3 {[%clk 00:02:26]} {[%emt 00:00:55]} 37. Qe7
{[%clk 00:00:41]} {[%emt 00:00:46]} Rf4 {[%clk 00:01:42]} {[%emt 00:01:15]} 38.
Rxd8 {[%clk 00:00:44]} {[%emt 00:00:27]} Bf6 {[%clk 00:01:57]} {[%emt
00:00:14]} 39. Rh8+ {[%clk 00:00:52]} {[%emt 00:00:22]} Kxh8 {[%clk 00:02:21]}
{[%emt 00:00:07]} 40. Qe8+ {[%clk 00:01:18]} {[%emt 00:00:04]} 1-0

[Event "Masters Tournament (MTO)"]
[Site "Biel, Switzerland"]
[Date "2026.07.18"]
[Round "6.13"]
[White "Dai, Wenzhi"]
[Black "Haimovich, Tal"]
[Result "1-0"]
[TimeControl "100+30+30sec/move"]
[WhiteTitle "-"]
[BlackTitle "-"]
[WhiteFideId "8608369"]
[BlackFideId "2801698"]
[WhiteElo "2126"]
[BlackElo "2310"]

1. e4 {[%clk 01:40:54]} {[%emt 00:00:06]} e5 {[%clk 01:40:52]} {[%emt
00:00:09]} 2. Nf3 {[%clk 01:41:18]} {[%emt 00:00:06]} Nc6 {[%clk 01:41:17]}
{[%emt 00:00:05]} 3. Bb5 {[%clk 01:41:41]} {[%emt 00:00:07]} a6 {[%clk
01:41:37]} {[%emt 00:00:10]} 4. Ba4 {[%clk 01:42:06]} {[%emt 00:00:05]} Nf6
{[%clk 01:42:00]} {[%emt 00:00:07]} 5. O-O {[%clk 01:42:29]} {[%emt 00:00:06]}
Be7 {[%clk 01:42:07]} {[%emt 00:00:24]} 6. Re1 {[%clk 01:42:53]} {[%emt
00:00:06]} b5 {[%clk 01:42:10]} {[%emt 00:00:27]} 7. Bb3 {[%clk 01:43:16]}
{[%emt 00:00:06]} O-O {[%clk 01:42:26]} {[%emt 00:00:15]} 8. c3 {[%clk
01:43:40]} {[%emt 00:00:06]} d6 {[%clk 01:42:29]} {[%emt 00:00:27]} 9. h3
{[%clk 01:44:04]} {[%emt 00:00:05]} Nb8 {[%clk 01:42:21]} {[%emt 00:00:38]} 10.
d4 {[%clk 01:44:24]} {[%emt 00:00:10]} Nbd7 {[%clk 01:42:47]} {[%emt 00:00:04]}
11. a4 {[%clk 01:43:04]} {[%emt 00:01:50]} Bb7 {[%clk 01:41:30]} {[%emt
00:01:48]} 12. Nbd2 {[%clk 01:42:35]} {[%emt 00:00:59]} c5 {[%clk 01:38:44]}
{[%emt 00:03:16]} 13. Bc2 {[%clk 01:38:30]} {[%emt 00:04:35]} Re8 {[%clk
01:34:51]} {[%emt 00:04:23]} 14. Qe2 {[%clk 01:26:45]} {[%emt 00:12:14]} Qb6
{[%clk 01:24:44]} {[%emt 00:10:38]} 15. d5 {[%clk 01:21:23]} {[%emt 00:05:52]}
c4 {[%clk 01:21:31]} {[%emt 00:03:43]} 16. b4 {[%clk 01:06:15]} {[%emt
00:15:38]} cxb3 {[%clk 01:13:48]} {[%emt 00:08:12]} 17. Nxb3 {[%clk 01:05:25]}
{[%emt 00:01:20]} Nc5 {[%clk 01:03:08]} {[%emt 00:11:10]} 18. Be3 {[%clk
01:03:33]} {[%emt 00:02:22]} Nfd7 {[%clk 01:02:38]} {[%emt 00:01:01]} 19. Reb1
{[%clk 00:59:51]} {[%emt 00:04:12]} Reb8 {[%clk 00:50:31]} {[%emt 00:12:37]} 20.
Nfd2 {[%clk 00:45:17]} {[%emt 00:15:03]} h6 {[%clk 00:41:21]} {[%emt 00:09:41]}
21. Nxc5 {[%clk 00:44:23]} {[%emt 00:01:24]} Nxc5 {[%clk 00:37:25]} {[%emt
00:04:26]} 22. Bd3 {[%clk 00:31:57]} {[%emt 00:12:55]} Bg5 {[%clk 00:27:45]}
{[%emt 00:10:10]} 23. axb5 {[%clk 00:30:07]} {[%emt 00:02:21]} Bxe3 {[%clk
00:25:38]} {[%emt 00:02:37]} 24. Qxe3 {[%clk 00:30:23]} {[%emt 00:00:13]} axb5
{[%clk 00:25:32]} {[%emt 00:00:37]} 25. Rxa8 {[%clk 00:30:40]} {[%emt
00:00:13]} Rxa8 {[%clk 00:25:39]} {[%emt 00:00:23]} 26. Bxb5 {[%clk 00:26:40]}
{[%emt 00:04:30]} Qc7 {[%clk 00:24:44]} {[%emt 00:01:24]} 27. Nb3 {[%clk
00:25:03]} {[%emt 00:02:07]} Nxb3 {[%clk 00:21:11]} {[%emt 00:04:03]} 28. Rxb3
{[%clk 00:25:28]} {[%emt 00:00:05]} Ra1+ {[%clk 00:21:35]} {[%emt 00:00:06]} 29.
Kh2 {[%clk 00:25:46]} {[%emt 00:00:13]} Ra2 {[%clk 00:21:50]} {[%emt 00:00:15]}
30. c4 {[%clk 00:22:46]} {[%emt 00:03:30]} h5 {[%clk 00:11:23]} {[%emt
00:10:57]} 31. Bc6 {[%clk 00:16:26]} {[%emt 00:06:49]} Ba6 {[%clk 00:10:19]}
{[%emt 00:01:35]} 32. c5 {[%clk 00:15:22]} {[%emt 00:01:34]} h4 {[%clk
00:06:52]} {[%emt 00:03:56]} 33. Ra3 {[%clk 00:13:59]} {[%emt 00:01:53]} Rxa3
{[%clk 00:02:20]} {[%emt 00:05:03]} 34. Qxa3 {[%clk 00:14:22]} {[%emt
00:00:07]} Bc8 {[%clk 00:02:38]} {[%emt 00:00:11]} 35. cxd6 {[%clk 00:14:31]}
{[%emt 00:00:21]} Qd8 {[%clk 00:02:49]} {[%emt 00:00:19]} 36. Qa8 {[%clk
00:14:22]} {[%emt 00:00:39]} Kh7 {[%clk 00:03:06]} {[%emt 00:00:13]} 37. d7
{[%clk 00:12:14]} {[%emt 00:02:38]} Qf6 {[%clk 00:03:09]} {[%emt 00:00:26]} 38.
Qa2 {[%clk 00:09:13]} {[%emt 00:03:32]} Bxd7 {[%clk 00:01:15]} {[%emt
00:02:25]} 39. Bxd7 {[%clk 00:09:32]} {[%emt 00:00:09]} Qf4+ {[%clk 00:01:44]}
{[%emt 00:00:02]} 40. g3 {[%clk 00:09:50]} {[%emt 00:00:12]} Qxe4 {[%clk
00:01:52]} {[%emt 00:00:22]} 41. Qd2 {[%clk 00:07:56]} {[%emt 00:02:24]} hxg3+
{[%clk 00:26:38]} {[%emt 00:05:45]} 42. fxg3 {[%clk 00:38:10]} {[%emt
00:00:15]} f5 {[%clk 00:19:02]} {[%emt 00:08:07]} 43. d6 {[%clk 00:37:58]}
{[%emt 00:00:41]} f4 {[%clk 00:17:35]} {[%emt 00:01:57]} 44. gxf4 {[%clk
00:36:30]} {[%emt 00:01:59]} exf4 {[%clk 00:15:53]} {[%emt 00:02:12]} 45. Bg4
{[%clk 00:34:29]} {[%emt 00:02:28]} Qe5 {[%clk 00:13:59]} {[%emt 00:02:26]} 46.
Bf3 {[%clk 00:30:18]} {[%emt 00:04:41]} Qg5 {[%clk 00:13:58]} {[%emt 00:00:31]}
47. Qe1 {[%clk 00:30:00]} {[%emt 00:00:47]} Qd8 {[%clk 00:11:11]} {[%emt
00:03:17]} 48. Qe4+ {[%clk 00:30:11]} {[%emt 00:00:19]} 1-0

[Event "Masters Tournament (MTO)"]
[Site "Biel, Switzerland"]
[Date "2026.07.18"]
[Round "6.14"]
[White "Arsenie, Cristian Marc"]
[Black "Vihaan, Dumir"]
[Result "0-1"]
[TimeControl "100+30+30sec/move"]
[WhiteTitle "-"]
[BlackTitle "-"]
[WhiteFideId "1345923"]
[BlackFideId "25901010"]
[WhiteElo "2300"]
[BlackElo "2132"]

1. e4 {[%clk 01:40:58]} {[%emt 00:00:01]} c5 {[%clk 01:39:52]} {[%emt
00:01:09]} 2. c3 {[%clk 01:40:20]} {[%emt 00:01:08]} d5 {[%clk 01:40:01]}
{[%emt 00:00:21]} 3. exd5 {[%clk 01:40:44]} {[%emt 00:00:06]} Qxd5 {[%clk
01:40:21]} {[%emt 00:00:09]} 4. d4 {[%clk 01:41:03]} {[%emt 00:00:12]} e6
{[%clk 01:40:07]} {[%emt 00:00:44]} 5. Nf3 {[%clk 01:41:21]} {[%emt 00:00:11]}
Nf6 {[%clk 01:40:29]} {[%emt 00:00:08]} 6. Na3 {[%clk 01:41:41]} {[%emt
00:00:10]} a6 {[%clk 01:40:52]} {[%emt 00:00:07]} 7. Nc4 {[%clk 01:41:31]}
{[%emt 00:00:40]} Nbd7 {[%clk 01:41:16]} {[%emt 00:00:07]} 8. Be2 {[%clk
01:41:43]} {[%emt 00:00:18]} b5 {[%clk 01:41:38]} {[%emt 00:00:08]} 9. Ne3
{[%clk 01:41:33]} {[%emt 00:00:39]} Qc6 {[%clk 01:42:02]} {[%emt 00:00:06]} 10.
a4 {[%clk 01:41:58]} {[%emt 00:00:06]} Bb7 {[%clk 01:42:20]} {[%emt 00:00:11]}
11. dxc5 {[%clk 01:35:04]} {[%emt 00:07:24]} Qxc5 {[%clk 01:41:35]} {[%emt
00:01:15]} 12. Nc2 {[%clk 01:32:08]} {[%emt 00:03:26]} Be7 {[%clk 01:19:16]}
{[%emt 00:22:49]} 13. O-O {[%clk 01:24:29]} {[%emt 00:08:10]} O-O {[%clk
01:19:31]} {[%emt 00:00:14]} 14. h3 {[%clk 01:22:02]} {[%emt 00:02:57]} Ne5
{[%clk 00:54:38]} {[%emt 00:25:18]} 15. Nfd4 {[%clk 01:13:57]} {[%emt
00:08:40]} bxa4 {[%clk 00:47:28]} {[%emt 00:07:40]} 16. Rxa4 {[%clk 01:11:13]}
{[%emt 00:03:13]} Rfd8 {[%clk 00:44:23]} {[%emt 00:03:34]} 17. Be3 {[%clk
01:01:11]} {[%emt 00:10:34]} Ng6 {[%clk 00:41:24]} {[%emt 00:03:29]} 18. Qa1
{[%clk 00:58:24]} {[%emt 00:03:17]} Qc8 {[%clk 00:20:11]} {[%emt 00:21:43]} 19.
Nf3 {[%clk 00:43:41]} {[%emt 00:15:13]} Nd5 {[%clk 00:19:23]} {[%emt 00:01:18]}
20. Bc1 {[%clk 00:39:58]} {[%emt 00:04:14]} Nb6 {[%clk 00:18:27]} {[%emt
00:01:24]} 21. Ra5 {[%clk 00:36:53]} {[%emt 00:03:36]} Nc4 {[%clk 00:14:11]}
{[%emt 00:04:44]} 22. Ra2 {[%clk 00:36:29]} {[%emt 00:00:56]} Bf6 {[%clk
00:12:16]} {[%emt 00:02:23]} 23. Ne3 {[%clk 00:30:25]} {[%emt 00:06:37]} Nb6
{[%clk 00:11:31]} {[%emt 00:01:15]} 24. Ng4 {[%clk 00:29:54]} {[%emt 00:01:01]}
Be7 {[%clk 00:12:00]} 25. Re1 {[%clk 00:25:00]} {[%emt 00:05:25]} Bd6 {[%clk
00:10:15]} {[%emt 00:02:14]} 26. Be3 {[%clk 00:20:29]} {[%emt 00:05:01]} Nd5
{[%clk 00:10:18]} {[%emt 00:00:27]} 27. Bd4 {[%clk 00:20:25]} {[%emt 00:00:35]}
Ndf4 {[%clk 00:10:04]} {[%emt 00:00:42]} 28. Bd1 {[%clk 00:20:50]} {[%emt
00:00:06]} Nxg2 {[%clk 00:09:33]} {[%emt 00:01:01]} 29. Kxg2 {[%clk 00:19:55]}
{[%emt 00:01:25]} Nh4+ {[%clk 00:10:01]} {[%emt 00:00:01]} 30. Kg1 {[%clk
00:16:35]} {[%emt 00:03:51]} Bxf3 {[%clk 00:09:53]} {[%emt 00:00:39]} 31. Qc1
{[%clk 00:13:07]} {[%emt 00:03:57]} Bxd1 {[%clk 00:05:21]} {[%emt 00:05:02]} 32.
Rxd1 {[%clk 00:12:27]} {[%emt 00:01:11]} Qc6 {[%clk 00:05:08]} {[%emt
00:00:36]} 33. Kf1 {[%clk 00:12:06]} {[%emt 00:00:58]} Qh1+ {[%clk 00:05:20]}
{[%emt 00:00:17]} 34. Ke2 {[%clk 00:12:27]} {[%emt 00:00:09]} Qf3+ {[%clk
00:05:26]} {[%emt 00:00:20]} 35. Ke1 {[%clk 00:12:32]} {[%emt 00:00:29]} Ng2+
{[%clk 00:05:07]} {[%emt 00:00:49]} 36. Kf1 {[%clk 00:12:56]} {[%emt 00:00:06]}
Nf4 {[%clk 00:05:24]} {[%emt 00:00:13]} 37. Ne3 {[%clk 00:12:19]} {[%emt
00:01:07]} Qh1# {[%clk 00:05:48]} {[%emt 00:00:06]} 0-1